[Event "Titled Tuesday Blitz March 21 Late 2023"]
[White "Toktomushev, Teimur"]
[Black "Vovk, Orest"]
[WhiteFideId "14176726"]
[BlackFideId "14113490"]
[WhiteElo "2116"]
[BlackElo "2215"]
[Result "1/2-1/2"]
[Round "06"]
[TimeControl "180+2"]
[Date "2023.03.21"]
[WhiteClock "0:00:05"]
[BlackClock "0:00:05"]

1. d4 {[%clk 0:03:00]}  h6 {[%clk 0:02:57]} 2. e4 {[%clk 0:02:58]}  g5 {[%clk 0:02:55]} 3. Bd3 {[%clk 0:02:50]}  Bg7 {[%clk 0:02:55]} 4. c3 {[%clk 0:02:49]}  d5 {[%clk 0:02:52]} 5. e5 {[%clk 0:02:35]}  c5 {[%clk 0:02:52]} 6. dxc5 {[%clk 0:01:54]}  Bxe5 {[%clk 0:02:43]} 7. Nf3 {[%clk 0:01:54]}  Bg4 {[%clk 0:02:42]} 8. h3 {[%clk 0:00:59]}  Bxf3 {[%clk 0:02:28]} 9. Qxf3 {[%clk 0:00:59]}  Nf6 {[%clk 0:02:26]} 10. Be3 {[%clk 0:00:46]}  Nc6 {[%clk 0:02:25]} 11. Nd2 {[%clk 0:00:38]}  Qc7 {[%clk 0:02:22]} 12. Rc1 {[%clk 0:00:29]}  O-O-O {[%clk 0:02:20]} 13. O-O {[%clk 0:00:24]}  e6 {[%clk 0:02:20]} 14. b4 {[%clk 0:00:22]}  Bf4 {[%clk 0:02:11]} 15. Nb3 {[%clk 0:00:15]}  Ne5 {[%clk 0:02:07]} 16. Qe2 {[%clk 0:00:16]}  Nxd3 {[%clk 0:01:57]} 17. Qxd3 {[%clk 0:00:16]}  Ne4 {[%clk 0:01:57]} 18. Nd4 {[%clk 0:00:12]}  Bxe3 {[%clk 0:01:50]} 19. Qxe3 {[%clk 0:00:12]}  a6 {[%clk 0:01:44]} 20. c4 {[%clk 0:00:11]}  Qf4 {[%clk 0:01:35]} 21. cxd5 {[%clk 0:00:11]}  Rxd5 {[%clk 0:01:32]} 22. c6 {[%clk 0:00:08]}  Nd2 {[%clk 0:01:16]} 23. cxb7+ {[%clk 0:00:04]}  Kxb7 {[%clk 0:01:17]} 24. Rfd1 {[%clk 0:00:02]}  Qxe3 {[%clk 0:01:16]} 25. fxe3 {[%clk 0:00:03]}  Ne4 {[%clk 0:01:15]} 26. Nb3 {[%clk 0:00:02]}  Rxd1+ {[%clk 0:01:05]} 27. Rxd1 {[%clk 0:00:02]}  Nf6 {[%clk 0:01:06]} 28. Rf1 {[%clk 0:00:02]}  Nd5 {[%clk 0:01:05]} 29. Rxf7+ {[%clk 0:00:03]}  Kb6 {[%clk 0:01:05]} 30. Nd4 {[%clk 0:00:03]}  Nxb4 {[%clk 0:01:00]} 31. Nxe6 {[%clk 0:00:03]}  Nxa2 {[%clk 0:01:00]} 32. Nd4 {[%clk 0:00:02]}  a5 {[%clk 0:00:53]} 33. e4 {[%clk 0:00:03]}  Re8 {[%clk 0:00:50]} 34. Rf6+ {[%clk 0:00:03]}  Kc5 {[%clk 0:00:48]} 35. Ne6+ {[%clk 0:00:02]}  Kb4 {[%clk 0:00:47]} 36. Nc7 {[%clk 0:00:02]}  Rxe4 {[%clk 0:00:45]} 37. Rxh6 {[%clk 0:00:03]}  Nc3 {[%clk 0:00:39]} 38. Rb6+ {[%clk 0:00:03]}  Kc5 {[%clk 0:00:35]} 39. Rg6 {[%clk 0:00:02]}  Re1+ {[%clk 0:00:32]} 40. Kh2 {[%clk 0:00:02]}  Re5 {[%clk 0:00:33]} 41. Ne6+ {[%clk 0:00:02]}  Kb4 {[%clk 0:00:31]} 42. Nxg5 {[%clk 0:00:02]}  a4 {[%clk 0:00:31]} 43. Nf3 {[%clk 0:00:02]}  Ra5 {[%clk 0:00:25]} 44. Nd4 {[%clk 0:00:03]}  Ra8 {[%clk 0:00:18]} 45. Nc6+ {[%clk 0:00:02]}  Kb3 {[%clk 0:00:16]} 46. Nd4+ {[%clk 0:00:02]}  Kc4 {[%clk 0:00:15]} 47. Nc2 {[%clk 0:00:03]}  Nd5 {[%clk 0:00:09]} 48. Rc6+ {[%clk 0:00:03]}  Kb3 {[%clk 0:00:08]} 49. Nd4+ {[%clk 0:00:03]}  Kb2 {[%clk 0:00:09]} 50. Rc5 {[%clk 0:00:03]}  Nc3 {[%clk 0:00:08]} 51. Rc7 {[%clk 0:00:02]}  a3 {[%clk 0:00:08]} 52. Rb7+ {[%clk 0:00:03]}  Kc1 {[%clk 0:00:09]} 53. Nb3+ {[%clk 0:00:03]}  Kc2 {[%clk 0:00:09]} 54. Na1+ {[%clk 0:00:03]}  Kd3 {[%clk 0:00:09]} 55. Nb3 {[%clk 0:00:03]}  a2 {[%clk 0:00:09]} 56. Rd7+ {[%clk 0:00:03]}  Kc2 {[%clk 0:00:08]} 57. Rb7 {[%clk 0:00:03]}  Ra3 {[%clk 0:00:07]} 58. Na1+ {[%clk 0:00:04]}  Kc1 {[%clk 0:00:07]} 59. h4 {[%clk 0:00:03]}  Ne2 {[%clk 0:00:06]} 60. h5 {[%clk 0:00:03]}  Ra5 {[%clk 0:00:06]} 61. g4 {[%clk 0:00:03]}  Nd4 {[%clk 0:00:04]} 62. h6 {[%clk 0:00:03]}  Nf3+ {[%clk 0:00:04]} 63. Kg3 {[%clk 0:00:03]}  Ng5 {[%clk 0:00:05]} 64. h7 {[%clk 0:00:03]}  Nxh7 {[%clk 0:00:05]} 65. Rxh7 {[%clk 0:00:04]}  Kb2 {[%clk 0:00:05]} 66. Rh1 {[%clk 0:00:03]}  Rc5 {[%clk 0:00:06]} 67. Kh4 {[%clk 0:00:03]}  Rc1 {[%clk 0:00:05]} 68. Rh2+ {[%clk 0:00:01]}  Ka3 {[%clk 0:00:04]} 69. g5 {[%clk 0:00:01]}  Rxa1 {[%clk 0:00:04]} 70. Rxa2+ {[%clk 0:00:01]}  Kxa2 {[%clk 0:00:03]} 71. Kh5 {[%clk 0:00:01]}  Rg1 {[%clk 0:00:04]} 72. g6 {[%clk 0:00:02]}  Kb3 {[%clk 0:00:04]} 73. Kh6 {[%clk 0:00:03]}  Kc4 {[%clk 0:00:05]} 74. g7 {[%clk 0:00:04]}  Kd5 {[%clk 0:00:05]} 75. Kh7 {[%clk 0:00:04]}  Ke6 {[%clk 0:00:05]} 76. g8=Q+ {[%clk 0:00:04]}  Rxg8 {[%clk 0:00:05]} 77. Kxg8 {[%clk 0:00:05]} 1/2-1/2


[Site "https://www.chess.com"]

[Event "Titled Tuesday Blitz March 21 Late 2023"]
[White "Yelisieiev, Yevhenii"]
[Black "Krzywda, Andrzej"]
[WhiteFideId "14139642"]
[BlackFideId "1114565"]
[WhiteElo "2447"]
[BlackElo "2155"]
[Result "1-0"]
[Round "06"]
[TimeControl "180+2"]
[Date "2023.03.21"]
[WhiteClock "0:00:09"]
[BlackClock "0:00:11"]

1. Nf3 {[%clk 0:02:59]}  Nf6 {[%clk 0:02:58]} 2. b3 {[%clk 0:02:59]}  e6 {[%clk 0:02:55]} 3. Bb2 {[%clk 0:02:59]}  d5 {[%clk 0:02:56]} 4. e3 {[%clk 0:02:55]}  Be7 {[%clk 0:02:52]} 5. c4 {[%clk 0:02:55]}  O-O {[%clk 0:02:52]} 6. Nc3 {[%clk 0:02:54]}  c5 {[%clk 0:02:49]} 7. cxd5 {[%clk 0:02:54]}  exd5 {[%clk 0:02:48]} 8. d4 {[%clk 0:02:54]}  Nc6 {[%clk 0:02:47]} 9. Be2 {[%clk 0:02:51]}  cxd4 {[%clk 0:02:35]} 10. Nxd4 {[%clk 0:02:51]}  Nxd4 {[%clk 0:02:34]} 11. Qxd4 {[%clk 0:02:51]}  Be6 {[%clk 0:02:34]} 12. O-O {[%clk 0:02:40]}  Qb6 {[%clk 0:02:34]} 13. Qxb6 {[%clk 0:02:06]}  axb6 {[%clk 0:02:34]} 14. Na4 {[%clk 0:02:07]}  Rac8 {[%clk 0:02:25]} 15. Rac1 {[%clk 0:02:01]}  Nd7 {[%clk 0:02:04]} 16. Bb5 {[%clk 0:01:51]}  Bc5 {[%clk 0:01:53]} 17. a3 {[%clk 0:01:41]}  Rc7 {[%clk 0:01:15]} 18. b4 {[%clk 0:01:33]}  Bd6 {[%clk 0:01:15]} 19. Bxd7 {[%clk 0:01:01]}  Bxd7 {[%clk 0:01:12]} 20. Nxb6 {[%clk 0:01:01]}  Rxc1 {[%clk 0:00:57]} 21. Rxc1 {[%clk 0:01:00]}  Be6 {[%clk 0:00:57]} 22. f3 {[%clk 0:00:55]}  Rd8 {[%clk 0:00:54]} 23. Kf2 {[%clk 0:00:53]}  f6 {[%clk 0:00:53]} 24. g3 {[%clk 0:00:51]}  Kf7 {[%clk 0:00:53]} 25. Rd1 {[%clk 0:00:49]}  Bc7 {[%clk 0:00:51]} 26. Na4 {[%clk 0:00:48]}  h5 {[%clk 0:00:36]} 27. Nc5 {[%clk 0:00:38]}  Bc8 {[%clk 0:00:35]} 28. a4 {[%clk 0:00:29]}  Bb6 {[%clk 0:00:34]} 29. Nb3 {[%clk 0:00:27]}  Be6 {[%clk 0:00:31]} 30. a5 {[%clk 0:00:28]}  Ba7 {[%clk 0:00:31]} 31. Bd4 {[%clk 0:00:28]}  Bb8 {[%clk 0:00:30]} 32. b5 {[%clk 0:00:26]}  Rc8 {[%clk 0:00:26]} 33. Nc5 {[%clk 0:00:26]}  Bf5 {[%clk 0:00:20]} 34. Nxb7 {[%clk 0:00:20]}  Rc2+ {[%clk 0:00:20]} 35. Kg1 {[%clk 0:00:17]}  h4 {[%clk 0:00:20]} 36. f4 {[%clk 0:00:14]}  Be4 {[%clk 0:00:18]} 37. gxh4 {[%clk 0:00:12]}  Rg2+ {[%clk 0:00:17]} 38. Kf1 {[%clk 0:00:12]}  Rxh2 {[%clk 0:00:17]} 39. Ra1 {[%clk 0:00:11]}  Rh1+ {[%clk 0:00:16]} 40. Kf2 {[%clk 0:00:11]}  Rh2+ {[%clk 0:00:17]} 41. Ke1 {[%clk 0:00:11]}  Bd3 {[%clk 0:00:08]} 42. a6 {[%clk 0:00:09]}  Bxb5 {[%clk 0:00:07]} 43. a7 {[%clk 0:00:09]}  Bxa7 {[%clk 0:00:08]} 44. Rxa7 {[%clk 0:00:09]}  Kg6 {[%clk 0:00:07]} 45. Nd6 {[%clk 0:00:09]}  Bd3 {[%clk 0:00:07]} 46. Ne8 {[%clk 0:00:09]}  Kf5 {[%clk 0:00:06]} 47. Rxg7 {[%clk 0:00:08]}  Ke4 {[%clk 0:00:06]} 48. Rg1 {[%clk 0:00:06]}  Re2+ {[%clk 0:00:05]} 49. Kd1 {[%clk 0:00:06]}  Ra2 {[%clk 0:00:04]} 50. Nxf6+ {[%clk 0:00:05]}  Kf3 {[%clk 0:00:05]} 51. Ng4 {[%clk 0:00:06]}  Ra4 {[%clk 0:00:02]} 52. Ne5+ {[%clk 0:00:06]}  Ke4 {[%clk 0:00:02]} 53. Nxd3 {[%clk 0:00:06]}  Kxd3 {[%clk 0:00:03]} 54. Kc1 {[%clk 0:00:06]}  Rb4 {[%clk 0:00:03]} 55. h5 {[%clk 0:00:06]}  Rc4+ {[%clk 0:00:04]} 56. Kb2 {[%clk 0:00:06]}  Rb4+ {[%clk 0:00:04]} 57. Ka3 {[%clk 0:00:06]}  Rb7 {[%clk 0:00:04]} 58. h6 {[%clk 0:00:07]}  Kc4 {[%clk 0:00:04]} 59. Rg7 {[%clk 0:00:05]}  Rb8 {[%clk 0:00:05]} 60. h7 {[%clk 0:00:05]}  Rb3+ {[%clk 0:00:05]} 61. Ka2 {[%clk 0:00:04]}  Rb8 {[%clk 0:00:06]} 62. Rg8 {[%clk 0:00:04]}  Rxg8 {[%clk 0:00:05]} 63. hxg8=Q {[%clk 0:00:03]}  Kd3 {[%clk 0:00:06]} 64. Qxd5 {[%clk 0:00:04]}  Kc2 {[%clk 0:00:06]} 65. f5 {[%clk 0:00:05]}  Kc1 {[%clk 0:00:06]} 66. f6 {[%clk 0:00:06]}  Kc2 {[%clk 0:00:07]} 67. f7 {[%clk 0:00:07]}  Kc1 {[%clk 0:00:07]} 68. f8=Q {[%clk 0:00:07]}  Kc2 {[%clk 0:00:08]} 69. e4 {[%clk 0:00:08]}  Kc1 {[%clk 0:00:09]} 70. e5 {[%clk 0:00:09]}  Kc2 {[%clk 0:00:10]} 71. Qff3 {[%clk 0:00:09]}  Kc1 {[%clk 0:00:11]} 72. Qc5+ {[%clk 0:00:09]}  Kd2 {[%clk 0:00:11]} 73. Qcc3# {[%clk 0:00:09]} 1-0


[Site "https://www.chess.com"]

[Event "Titled Tuesday Blitz March 21 Late 2023"]
[White "Omelja, Artem"]
[Black "Hindermann, Felix"]
[WhiteFideId "14119846"]
[BlackFideId "1305212"]
[WhiteElo "2404"]
[BlackElo "2206"]
[Result "0-1"]
[Round "06"]
[TimeControl "180+2"]
[Date "2023.03.21"]
[WhiteClock "0:00:05"]
[BlackClock "0:00:14"]

1. e4 {[%clk 0:03:00]}  e6 {[%clk 0:03:00]} 2. d3 {[%clk 0:03:00]}  d5 {[%clk 0:03:01]} 3. Nd2 {[%clk 0:03:00]}  Nc6 {[%clk 0:03:01]} 4. Ngf3 {[%clk 0:03:00]}  Nf6 {[%clk 0:03:02]} 5. c3 {[%clk 0:02:56]}  a5 {[%clk 0:03:02]} 6. a4 {[%clk 0:02:54]}  dxe4 {[%clk 0:03:01]} 7. dxe4 {[%clk 0:02:55]}  e5 {[%clk 0:03:01]} 8. Bc4 {[%clk 0:02:55]}  Bc5 {[%clk 0:03:01]} 9. O-O {[%clk 0:02:53]}  O-O {[%clk 0:03:02]} 10. Qc2 {[%clk 0:02:49]}  Qe7 {[%clk 0:03:02]} 11. h3 {[%clk 0:02:43]}  Be6 {[%clk 0:02:59]} 12. b3 {[%clk 0:02:38]}  Rad8 {[%clk 0:02:55]} 13. Re1 {[%clk 0:02:38]}  Nh5 {[%clk 0:02:51]} 14. Bxe6 {[%clk 0:02:36]}  fxe6 {[%clk 0:02:43]} 15. Nf1 {[%clk 0:02:26]}  Rxf3 {[%clk 0:02:38]} 16. gxf3 {[%clk 0:02:23]}  Qh4 {[%clk 0:02:38]} 17. Kg2 {[%clk 0:02:23]}  Rf8 {[%clk 0:02:23]} 18. Ng3 {[%clk 0:02:20]}  Ne7 {[%clk 0:02:12]} 19. Nxh5 {[%clk 0:01:22]}  Qxh5 {[%clk 0:02:11]} 20. Qe2 {[%clk 0:01:22]}  Ng6 {[%clk 0:02:10]} 21. f4 {[%clk 0:01:23]}  Nh4+ {[%clk 0:02:03]} 22. Kg3 {[%clk 0:00:56]}  Qg6+ {[%clk 0:00:46]} 23. Qg4 {[%clk 0:00:51]}  exf4+ {[%clk 0:00:22]} 24. Bxf4 {[%clk 0:00:49]}  e5 {[%clk 0:00:23]} 25. Qxg6 {[%clk 0:00:20]}  Bxf2+ {[%clk 0:00:22]} 26. Kxf2 {[%clk 0:00:19]}  Rxf4+ {[%clk 0:00:22]} 27. Ke3 {[%clk 0:00:13]}  Rf3+ {[%clk 0:00:22]} 28. Kd2 {[%clk 0:00:10]}  Nxg6 {[%clk 0:00:21]} 29. Re3 {[%clk 0:00:08]}  Rf2+ {[%clk 0:00:21]} 30. Re2 {[%clk 0:00:07]}  Rf3 {[%clk 0:00:20]} 31. Kc2 {[%clk 0:00:03]}  Nf4 {[%clk 0:00:20]} 32. Rd2 {[%clk 0:00:03]}  Nxh3 {[%clk 0:00:17]} 33. Rad1 {[%clk 0:00:03]}  h5 {[%clk 0:00:16]} 34. Rd8+ {[%clk 0:00:03]}  Kh7 {[%clk 0:00:16]} 35. R1d7 {[%clk 0:00:03]}  Nf4 {[%clk 0:00:16]} 36. Rxc7 {[%clk 0:00:04]}  h4 {[%clk 0:00:16]} 37. Rdd7 {[%clk 0:00:04]}  Rg3 {[%clk 0:00:16]} 38. Rd8 {[%clk 0:00:03]}  h3 {[%clk 0:00:16]} 39. Rcc8 {[%clk 0:00:04]}  Ng6 {[%clk 0:00:16]} 40. Rd2 {[%clk 0:00:04]}  Rg2 {[%clk 0:00:16]} 41. Rd8 {[%clk 0:00:04]}  Nf4 {[%clk 0:00:15]} 42. Rxg2 {[%clk 0:00:02]}  hxg2 {[%clk 0:00:15]} 43. Rd1 {[%clk 0:00:02]}  Ne2 {[%clk 0:00:15]} 44. b4 {[%clk 0:00:03]}  g1=Q {[%clk 0:00:15]} 45. Rxg1 {[%clk 0:00:03]}  Nxg1 {[%clk 0:00:16]} 46. bxa5 {[%clk 0:00:03]}  Nf3 {[%clk 0:00:15]} 47. Kd3 {[%clk 0:00:03]}  g5 {[%clk 0:00:15]} 48. c4 {[%clk 0:00:03]}  Kg6 {[%clk 0:00:14]} 49. c5 {[%clk 0:00:03]}  Nd4 {[%clk 0:00:14]} 50. Kc4 {[%clk 0:00:03]}  g4 {[%clk 0:00:13]} 51. c6 {[%clk 0:00:02]}  Nxc6 {[%clk 0:00:13]} 52. Kb5 {[%clk 0:00:03]}  Nxa5 {[%clk 0:00:11]} 53. Kxa5 {[%clk 0:00:03]}  g3 {[%clk 0:00:12]} 54. Kb6 {[%clk 0:00:04]}  g2 {[%clk 0:00:13]} 55. Kxb7 {[%clk 0:00:04]}  g1=Q {[%clk 0:00:13]} 56. a5 {[%clk 0:00:05]}  Qb1+ {[%clk 0:00:13]} 57. Ka7 {[%clk 0:00:05]}  Qxe4 {[%clk 0:00:13]} 58. a6 {[%clk 0:00:05]}  Qd4+ {[%clk 0:00:14]} 59. Kb7 {[%clk 0:00:06]}  Qb4+ {[%clk 0:00:14]} 60. Ka7 {[%clk 0:00:05]}  Qb5 {[%clk 0:00:14]} 0-1


[Site "https://www.chess.com"]

[Event "Titled Tuesday Blitz March 21 Late 2023"]
[White "Romkachess"]
[Black "Abduzhaparov"]
[WhiteElo "2515"]
[BlackElo "2353"]
[Result "0-1"]
[Round "06"]
[TimeControl "180+2"]
[Date "2023.03.21"]
[WhiteClock "0:00:01"]
[BlackClock "0:00:17"]

1. e4 {[%clk 0:03:00]}  d6 {[%clk 0:03:00]} 2. d4 {[%clk 0:02:50]}  Nf6 {[%clk 0:03:01]} 3. Nc3 {[%clk 0:02:50]}  e5 {[%clk 0:03:01]} 4. Nf3 {[%clk 0:02:49]}  Nbd7 {[%clk 0:03:01]} 5. g4 {[%clk 0:02:48]}  g6 {[%clk 0:02:57]} 6. Rg1 {[%clk 0:02:46]}  c6 {[%clk 0:02:54]} 7. Be3 {[%clk 0:02:40]}  Be7 {[%clk 0:02:51]} 8. Qd2 {[%clk 0:02:39]}  b5 {[%clk 0:02:51]} 9. a3 {[%clk 0:02:38]}  Bb7 {[%clk 0:02:51]} 10. g5 {[%clk 0:02:23]}  Nh5 {[%clk 0:02:51]} 11. dxe5 {[%clk 0:02:23]}  Nxe5 {[%clk 0:02:42]} 12. Be2 {[%clk 0:02:20]}  Nc4 {[%clk 0:02:33]} 13. Bxc4 {[%clk 0:02:15]}  bxc4 {[%clk 0:02:34]} 14. Qd4 {[%clk 0:02:09]}  O-O {[%clk 0:02:34]} 15. O-O-O {[%clk 0:02:02]}  d5 {[%clk 0:02:34]} 16. exd5 {[%clk 0:02:00]}  cxd5 {[%clk 0:02:32]} 17. Nxd5 {[%clk 0:02:00]}  Bxd5 {[%clk 0:02:30]} 18. Qxd5 {[%clk 0:02:00]}  Qc8 {[%clk 0:02:04]} 19. Bd4 {[%clk 0:01:46]}  Rd8 {[%clk 0:01:54]} 20. Qe5 {[%clk 0:01:46]}  Rxd4 {[%clk 0:01:52]} 21. Rxd4 {[%clk 0:01:36]}  Bf8 {[%clk 0:01:52]} 22. Qe4 {[%clk 0:01:19]}  c3 {[%clk 0:01:51]} 23. Rc4 {[%clk 0:01:11]}  cxb2+ {[%clk 0:01:50]} 24. Kb1 {[%clk 0:01:03]}  Qd8 {[%clk 0:01:44]} 25. Qd3 {[%clk 0:00:52]}  Qa5 {[%clk 0:01:36]} 26. Qb3 {[%clk 0:00:37]}  Qf5 {[%clk 0:01:24]} 27. Re1 {[%clk 0:00:25]}  Rd8 {[%clk 0:01:19]} 28. Kxb2 {[%clk 0:00:13]}  Nf4 {[%clk 0:01:11]} 29. Ree4 {[%clk 0:00:09]}  Nd5 {[%clk 0:01:05]} 30. Ka2 {[%clk 0:00:10]}  Nb6 {[%clk 0:01:02]} 31. Rcd4 {[%clk 0:00:09]}  Rc8 {[%clk 0:01:00]} 32. Re2 {[%clk 0:00:06]}  Bg7 {[%clk 0:00:56]} 33. Qd3 {[%clk 0:00:06]}  Qa5 {[%clk 0:00:41]} 34. Rd8+ {[%clk 0:00:05]}  Rxd8 {[%clk 0:00:42]} 35. Qxd8+ {[%clk 0:00:06]}  Bf8 {[%clk 0:00:42]} 36. Re8 {[%clk 0:00:06]}  Qxa3+ {[%clk 0:00:40]} 37. Kb1 {[%clk 0:00:05]}  Nc4 {[%clk 0:00:33]} 38. Qb8 {[%clk 0:00:02]}  Qc5 {[%clk 0:00:19]} 39. Qb3 {[%clk 0:00:01]}  a5 {[%clk 0:00:17]} 0-1


[Site "https://www.chess.com"]

[Event "Titled Tuesday Blitz March 21 Late 2023"]
[White "Kostiukov, Alexandr"]
[Black "Miszler, Levente"]
[WhiteFideId "14108100"]
[BlackFideId "763276"]
[WhiteElo "2202"]
[BlackElo "2176"]
[Result "0-1"]
[Round "06"]
[TimeControl "180+2"]
[Date "2023.03.21"]
[WhiteClock "0:00:01"]
[BlackClock "0:00:09"]

1. g3 {[%clk 0:03:00]}  Nf6 {[%clk 0:02:58]} 2. Bg2 {[%clk 0:03:01]}  e5 {[%clk 0:02:59]} 3. c4 {[%clk 0:03:01]}  Nc6 {[%clk 0:02:55]} 4. a3 {[%clk 0:02:58]}  a5 {[%clk 0:02:55]} 5. Nc3 {[%clk 0:02:58]}  Bc5 {[%clk 0:02:54]} 6. e3 {[%clk 0:02:58]}  O-O {[%clk 0:02:50]} 7. Nge2 {[%clk 0:02:58]}  Re8 {[%clk 0:02:45]} 8. O-O {[%clk 0:02:58]}  e4 {[%clk 0:02:36]} 9. d4 {[%clk 0:02:56]}  exd3 {[%clk 0:02:35]} 10. Nf4 {[%clk 0:02:55]}  Ne5 {[%clk 0:02:29]} 11. Nxd3 {[%clk 0:02:53]}  Nxd3 {[%clk 0:02:26]} 12. Qxd3 {[%clk 0:02:54]}  d6 {[%clk 0:02:24]} 13. Nd5 {[%clk 0:02:40]}  Nxd5 {[%clk 0:02:19]} 14. cxd5 {[%clk 0:02:41]}  a4 {[%clk 0:02:19]} 15. Bd2 {[%clk 0:02:37]}  Qf6 {[%clk 0:02:17]} 16. Bc3 {[%clk 0:02:36]}  Qg6 {[%clk 0:02:11]} 17. Qb5 {[%clk 0:02:16]}  Bf5 {[%clk 0:02:00]} 18. Qxb7 {[%clk 0:01:46]}  Reb8 {[%clk 0:01:20]} 19. Qxc7 {[%clk 0:01:45]}  Rc8 {[%clk 0:01:20]} 20. Qe7 {[%clk 0:01:45]}  Re8 {[%clk 0:01:19]} 21. Qh4 {[%clk 0:01:43]}  Bd3 {[%clk 0:01:15]} 22. Rfe1 {[%clk 0:01:39]}  Be4 {[%clk 0:01:15]} 23. Rad1 {[%clk 0:01:23]}  h6 {[%clk 0:00:55]} 24. Bd4 {[%clk 0:01:11]}  Bxg2 {[%clk 0:00:51]} 25. Kxg2 {[%clk 0:01:02]}  Re4 {[%clk 0:00:50]} 26. Qh3 {[%clk 0:01:02]}  Bxd4 {[%clk 0:00:49]} 27. Rxd4 {[%clk 0:00:51]}  Rxd4 {[%clk 0:00:46]} 28. exd4 {[%clk 0:00:52]}  Qd3 {[%clk 0:00:43]} 29. Qg4 {[%clk 0:00:44]}  Qd2 {[%clk 0:00:39]} 30. Re2 {[%clk 0:00:39]}  Qd3 {[%clk 0:00:37]} 31. Qe4 {[%clk 0:00:33]}  Qc4 {[%clk 0:00:29]} 32. h4 {[%clk 0:00:22]}  Rb8 {[%clk 0:00:28]} 33. g4 {[%clk 0:00:21]}  Qc1 {[%clk 0:00:16]} 34. f4 {[%clk 0:00:16]}  Rc8 {[%clk 0:00:16]} 35. g5 {[%clk 0:00:15]}  hxg5 {[%clk 0:00:15]} 36. hxg5 {[%clk 0:00:13]}  Qd1 {[%clk 0:00:15]} 37. f5 {[%clk 0:00:10]}  Rc1 {[%clk 0:00:10]} 38. Qe3 {[%clk 0:00:05]}  Qh1+ {[%clk 0:00:09]} 39. Kg3 {[%clk 0:00:04]}  Rg1+ {[%clk 0:00:09]} 40. Kf4 {[%clk 0:00:04]}  Qh4+ {[%clk 0:00:09]} 41. Kf3 {[%clk 0:00:03]}  Rg3+ {[%clk 0:00:08]} 42. Kf2 {[%clk 0:00:03]}  Qh2+ {[%clk 0:00:08]} 43. Ke1 {[%clk 0:00:03]}  Qh1+ {[%clk 0:00:08]} 44. Kd2 {[%clk 0:00:03]}  Rxe3 {[%clk 0:00:08]} 45. Kxe3 {[%clk 0:00:04]}  Qxd5 {[%clk 0:00:08]} 46. Rf2 {[%clk 0:00:03]}  Qb3+ {[%clk 0:00:07]} 47. Ke4 {[%clk 0:00:04]}  Kf8 {[%clk 0:00:07]} 48. f6 {[%clk 0:00:03]}  gxf6 {[%clk 0:00:07]} 49. gxf6 {[%clk 0:00:04]}  Ke8 {[%clk 0:00:08]} 50. Rh2 {[%clk 0:00:02]}  Qe6+ {[%clk 0:00:08]} 51. Kd3 {[%clk 0:00:01]}  Qxf6 {[%clk 0:00:09]} 0-1


[Site "https://www.chess.com"]

[Event "Titled Tuesday Blitz March 21 Late 2023"]
[White "MunichMouse"]
[Black "Kokoszczynski, Jan"]
[BlackFideId "1174460"]
[WhiteElo "2317"]
[BlackElo "2139"]
[Result "0-1"]
[Round "06"]
[TimeControl "180+2"]
[Date "2023.03.21"]
[WhiteClock "0:00:18"]
[BlackClock "0:00:08"]

1. d4 {[%clk 0:03:00]}  d5 {[%clk 0:02:58]} 2. c4 {[%clk 0:02:59]}  e6 {[%clk 0:02:59]} 3. Nf3 {[%clk 0:02:59]}  a6 {[%clk 0:02:58]} 4. cxd5 {[%clk 0:02:57]}  exd5 {[%clk 0:02:59]} 5. g3 {[%clk 0:02:58]}  c6 {[%clk 0:02:58]} 6. Bg2 {[%clk 0:02:58]}  Nf6 {[%clk 0:02:58]} 7. O-O {[%clk 0:02:59]}  Bd6 {[%clk 0:02:57]} 8. Nc3 {[%clk 0:02:59]}  O-O {[%clk 0:02:57]} 9. Re1 {[%clk 0:02:59]}  Re8 {[%clk 0:02:57]} 10. Bg5 {[%clk 0:02:58]}  Bf5 {[%clk 0:02:46]} 11. Nh4 {[%clk 0:02:58]}  Be6 {[%clk 0:02:40]} 12. e4 {[%clk 0:02:57]}  dxe4 {[%clk 0:02:40]} 13. Nxe4 {[%clk 0:02:57]}  Be7 {[%clk 0:02:40]} 14. Nc5 {[%clk 0:02:53]}  Bxc5 {[%clk 0:02:36]} 15. dxc5 {[%clk 0:02:47]}  Nbd7 {[%clk 0:02:35]} 16. b4 {[%clk 0:02:45]}  h6 {[%clk 0:02:33]} 17. Be3 {[%clk 0:02:38]}  Ne5 {[%clk 0:02:10]} 18. Qc2 {[%clk 0:02:30]}  Nd3 {[%clk 0:01:35]} 19. Red1 {[%clk 0:02:04]}  Nxb4 {[%clk 0:01:32]} 20. Qb2 {[%clk 0:01:56]}  Nbd5 {[%clk 0:01:13]} 21. Qxb7 {[%clk 0:01:56]}  Qc8 {[%clk 0:01:13]} 22. Qxc8 {[%clk 0:01:49]}  Raxc8 {[%clk 0:01:14]} 23. Bd4 {[%clk 0:01:50]}  Rb8 {[%clk 0:01:01]} 24. Rab1 {[%clk 0:01:49]}  Nd7 {[%clk 0:00:51]} 25. a3 {[%clk 0:01:47]}  f6 {[%clk 0:00:38]} 26. Nf3 {[%clk 0:01:41]}  Kf7 {[%clk 0:00:38]} 27. Bf1 {[%clk 0:01:35]}  a5 {[%clk 0:00:19]} 28. Nd2 {[%clk 0:01:31]}  Bf5 {[%clk 0:00:18]} 29. Rxb8 {[%clk 0:01:24]}  Rxb8 {[%clk 0:00:18]} 30. Nc4 {[%clk 0:01:24]}  Bg4 {[%clk 0:00:17]} 31. Re1 {[%clk 0:01:19]}  a4 {[%clk 0:00:16]} 32. Nd6+ {[%clk 0:01:17]}  Kg8 {[%clk 0:00:15]} 33. Bc4 {[%clk 0:01:12]}  Bf3 {[%clk 0:00:09]} 34. Re8+ {[%clk 0:01:04]}  Rxe8 {[%clk 0:00:08]} 35. Nxe8 {[%clk 0:01:05]}  Kf7 {[%clk 0:00:08]} 36. Nc7 {[%clk 0:01:02]}  Ne5 {[%clk 0:00:07]} 37. Bxe5 {[%clk 0:00:59]}  fxe5 {[%clk 0:00:08]} 38. Nxd5 {[%clk 0:00:54]}  cxd5 {[%clk 0:00:08]} 39. Bb5 {[%clk 0:00:51]}  d4 {[%clk 0:00:06]} 40. Bxa4 {[%clk 0:00:50]}  d3 {[%clk 0:00:06]} 41. Bb3+ {[%clk 0:00:43]}  Ke7 {[%clk 0:00:06]} 42. Kf1 {[%clk 0:00:44]}  d2 {[%clk 0:00:06]} 43. a4 {[%clk 0:00:41]}  Kd7 {[%clk 0:00:06]} 44. a5 {[%clk 0:00:37]}  Kc6 {[%clk 0:00:02]} 45. a6 {[%clk 0:00:34]}  d1=Q+ {[%clk 0:00:02]} 46. Bxd1 {[%clk 0:00:32]}  Bxd1 {[%clk 0:00:03]} 47. Ke1 {[%clk 0:00:28]}  Bf3 {[%clk 0:00:04]} 48. Kd2 {[%clk 0:00:24]}  Kxc5 {[%clk 0:00:04]} 49. Ke3 {[%clk 0:00:25]}  Ba8 {[%clk 0:00:05]} 50. f4 {[%clk 0:00:24]}  e4 {[%clk 0:00:04]} 51. f5 {[%clk 0:00:24]}  Kd6 {[%clk 0:00:05]} 52. Kf4 {[%clk 0:00:23]}  Kd5 {[%clk 0:00:05]} 53. g4 {[%clk 0:00:20]}  Kd4 {[%clk 0:00:06]} 54. h4 {[%clk 0:00:20]}  e3 {[%clk 0:00:06]} 55. g5 {[%clk 0:00:20]}  hxg5+ {[%clk 0:00:06]} 56. hxg5 {[%clk 0:00:20]}  e2 {[%clk 0:00:07]} 57. f6 {[%clk 0:00:20]}  gxf6 {[%clk 0:00:07]} 58. gxf6 {[%clk 0:00:21]}  e1=Q {[%clk 0:00:08]} 59. Kg5 {[%clk 0:00:20]}  Qg3+ {[%clk 0:00:08]} 60. Kf5 {[%clk 0:00:20]}  Be4+ {[%clk 0:00:07]} 61. Ke6 {[%clk 0:00:20]}  Bd5+ {[%clk 0:00:08]} 62. Ke7 {[%clk 0:00:20]}  Qc7+ {[%clk 0:00:09]} 63. Ke8 {[%clk 0:00:19]}  Qf7+ {[%clk 0:00:08]} 64. Kd8 {[%clk 0:00:19]}  Kc5 {[%clk 0:00:08]} 65. a7 {[%clk 0:00:19]}  Kd6 {[%clk 0:00:08]} 66. Kc8 {[%clk 0:00:18]}  Qc7# {[%clk 0:00:08]} 0-1


[Site "https://www.chess.com"]